[Event "14th Chennai GM Open 2023"]
[Site "Chennai"]
[Date "2024.01.01"]
[Round "3.1"]
[White "Chandar Raju"]
[Black "Aronyak Ghosh"]
[Result "0-1"]
[ECO "E12"]
[WhiteElo "1901"]
[BlackElo "2545"]
[Annotator "TA"]
[PlyCount "54"]
[EventDate "2023.12.31"]
[EventType "swiss"]
[EventCountry "IND"]
[SourceTitle "playchess.com"]
[Source "ChessBase"]
[SourceQuality "1"]
[TimeControl "5400+30"]

{[%evp 10,54,17,0,4,-40,-21,-19,-25,-25,-15,-56,-41,-61,-39,-60,-69,-93,-89,-167,-116,-163,-142,-193,-195,-193,-183,-186,-186,-235,-235,-270,-278,-283,-287,-236,-230,-462,-445,-451,-449,-804,-881,-854,-839,-831,-796]} 1. d4 {[%emt 0:01:14]} Nf6 {[%emt 0:02:41]} 2. c4 {[%emt 0:00:06]} e6 {[%emt 0:00:21]} 3. Nf3 {[%emt 0:00:44]} b6 {[%emt 0:00:34]} 4. a3 {[%emt 0:01:31]} Bb7 {[%emt 0:01:47]} 5. Nc3 {[%emt 0:00:13]} d5 {[%emt 0:01:34]} 6. e3 {[%emt 0:04:43]} Nbd7 {[%emt 0:03:23] E12: Queen's Indian: Unusual White 4th moves, 4 a3, 4 Nc3 Bb7 5 a3 and 4 Nc3 Bb7 .} 7. Qa4 {[%emt 0:03:28]} a6 {[%emt 0:05:58]} 8. cxd5 {[%emt 0:05:18]} exd5 {[%emt 0:04:21] The position is equal.} 9. Ne5 {[%emt 0:05:17] [#]} Bd6 $146 {[%emt 0:02:16]} (9... b5 $5 {[%cal Rb5a4]} 10. Qd1 c5 $11) ({Predecessor:} 9... b5 10. Qc2 Nxe5 11. dxe5 Ng4 12. f4 c5 13. Be2 c4 14. Qd1 h5 15. Bf3 Bc5 16. Nxd5 {0-1 Flatschacher,R-Rudolf,P Team-ch L19K2-H(1-3) 2021}) 10. f4 {[%emt 0:00:30]} (10. Nxd7 {simplifies} Nxd7 11. g3 O-O 12. Bg2) 10... b5 {[%emt 0:05:14]} 11. Qc2 {[%emt 0:00:33]} c5 {[%emt 0:00:58]} 12. Qf5 {[%emt 0:14:11]} Nf8 {[%emt 0:09:25]} 13. dxc5 {[%emt 0:19:27]} Bxc5 {[%emt 0:00:43] And now ...Ne6 would win.} 14. Ng4 {[%emt 0:15:07]} (14. Bd3 $17) 14... N8d7 {[%emt 0:07:16]} ({Black should try} 14... Nxg4 $19 15. Qxg4 Ng6) 15. Bd3 {[%emt 0:05:41]} (15. Be2 $17) 15... O-O {[%emt 0:11:50]} 16. b4 {[%emt 0:09:05]} (16. Ne2 $17) 16... Bb6 $19 {[%emt 0:08:00]} 17. Bb2 {[%emt 0:00:50][%cal Oc3d5] Threatens to win with Nxd5!} Re8 {[%emt 0:00:12]} 18. Ne2 {[%emt 0:07:29]} Kf8 {[%emt 0:02:35] White must now prevent ...Nxg4.} (18... Bxe3 19. Qg5 Qe7 20. Nh6+ Kh8 21. Nf5 $17) 19. Qg5 {[%emt 0:03:04]} (19. Bxf6 {is a better defense.} Nxf6 20. Nxf6 Qxf6 21. Qxf6 gxf6 22. Rf1) 19... d4 {[%emt 0:00:43][%mdl 64] [#] Strongly threatening ...Nxg4. Discovered Attack} (19... Bxe3 20. Nxe3 Rxe3 21. Rd1) 20. Ne5 {[%emt 0:01:22]} h6 {[%emt 0:01:16]} (20... dxe3 $2 21. Rd1 Nxe5 22. fxe5 $19) 21. Qg3 {[%emt 0:00:27]} Nxe5 {[%emt 0:01:15]} ({Weaker is} 21... dxe3 22. Rd1 Nxe5 23. fxe5 $17) 22. fxe5 {[%emt 0:00:04]} Nh5 {[%emt 0:00:03][%mdl 64] Deflection} (22... dxe3 $2 23. exf6 gxf6 24. Rd1 $18) 23. Qg4 {[%emt 0:00:40]} (23. Qh3 {was the only defense.} Rxe5 24. O-O) 23... Rxe5 {[%emt 0:00:18][%cal Be8e5,Be5d5,Bd5d7][%mdl 32] Black is clearly winning.} (23... dxe3 $2 {is the wrong capture.} 24. Rd1 Qg5 25. Qxg5 hxg5 26. h4 $17) 24. Bxd4 {[%emt 0:00:50]} Bxd4 {[%emt 0:02:09]} 25. Qxd4 {[%emt 0:00:31]} (25. exd4 $142 Rg5 {[%mdl 64] Skewer} 26. Qh4) 25... Rd5 {[%emt 0:01:18][%mdl 64] [#] Skewer} ({Not} 25... Bxg2 26. Qxe5 Bxh1 27. Qc5+ Ke8 28. Qe5+ Kf8 29. Qc5+ Ke8 30. Qe5+ Kf8 $11) 26. Qg4 {[%emt 0:00:27]} Nf6 {[%emt 0:02:49]} 27. Qf3 {[%emt 0:00:01]} Rd7 {[%emt 0:25:01][%mdl 64] Discovered Attack. White did not feel at home in the position after the opening.   Weighted Error Value: White=0.56/Black=0.07 (flawless)} 0-1

[Event "14th Chennai GM Open 2023"]
[Site "Chennai"]
[Date "2024.01.01"]
[Round "3.2"]
[White "Srihari L R"]
[Black "Balkishan, A.."]
[Result "1/2-1/2"]
[ECO "E11"]
[WhiteElo "2467"]
[BlackElo "1855"]
[Annotator "TA"]
[PlyCount "90"]
[EventDate "2023.12.31"]
[EventType "swiss"]
[EventCountry "IND"]
[SourceTitle "playchess.com"]
[Source "ChessBase"]
[SourceQuality "1"]
[TimeControl "5400+30"]

{[%evp 9,90,20,25,13,7,-65,-75,-92,-89,-77,-81,-75,-102,-91,-85,-80,-91,-93,-102,-84,-82,-83,-62,-70,-68,-69,-58,-80,-51,-83,-62,-57,-41,-43,-33,-41,-39,-27,0,-18,0,0,0,0,0,0,0,0,0,0,0,0,7,0,0,0,0,0,0,-187,-179,-315,-257,-284,-262,-256,-229,-223,-184,-186,-111,-95,-93,-129,-135,-133,-4,-6,0,-141,0,-11,0]} 1. d4 {[%emt 0:01:19]} Nf6 {[%emt 0:01:29]} 2. c4 {[%emt 0:00:54]} e6 {[%emt 0:00:05]} 3. Nf3 {[%emt 0:00:08]} Bb4+ {[%emt 0:00:10]} 4. Nbd2 {[%emt 0:00:08]} O-O {[%emt 0:03:45]} 5. a3 {[%emt 0:00:25]} Bxd2+ {[%emt 0:04:14]} 6. Nxd2 {[%emt 0:06:51] E11: Bogo-Indian.} (6. Kxd2 d6 $15) 6... d6 {[%emt 0:00:32]} 7. e4 {[%emt 0:08:01]} (7. Qc2 $11) 7... Nc6 $1 $15 {[%emt 0:03:10][%cal Bb8c6,Bc6d4,Bd4e2][%mdl 32]} 8. d5 {[%emt 0:04:45] Black is better.} exd5 {[%emt 0:00:58]} 9. cxd5 {[%emt 0:01:50] [#]} Nxd5 {[%emt 0:00:46] [#]} 10. exd5 $146 {[%emt 0:12:36]} ({Predecessor:} 10. g3 Nf6 11. b4 Qe8 12. Bg2 a5 13. b5 Ne5 14. Qe2 Bd7 15. Rb1 a4 16. f4 {½-½ Malczyk,R (2113)-Matuszewski,M (2175) Ketrzyn op 2007 (4)}) 10... Re8+ {[%emt 0:00:15]} 11. Be2 {[%emt 0:00:05]} Nd4 {[%emt 0:00:38]} 12. Nf3 {[%emt 0:01:10]} Nxe2 {[%emt 0:04:41]} (12... Rxe2+ 13. Kf1 $14) 13. Be3 {[%emt 0:00:04]} Nf4 {[%emt 0:01:49]} 14. O-O {[%emt 0:00:05]} Ng6 {[%emt 0:02:48]} 15. Rc1 {[%emt 0:10:21]} Bg4 {[%emt 0:20:05]} 16. h3 $1 {[%emt 0:01:50][%cal Bh2h3,Bh3h4,Bh4h5][%mdl 32]} Bxf3 {[%emt 0:02:59]} 17. Qxf3 {[%emt 0:00:14]} Re5 {[%emt 0:00:07]} 18. Rfd1 {[%emt 0:06:14]} Qe7 {[%emt 0:04:50]} 19. g3 {[%emt 0:15:11]} Re8 {[%emt 0:07:54]} 20. h4 {[%emt 0:05:43]} Qd7 {[%emt 0:10:40]} 21. h5 {[%emt 0:11:46] [#]} Rxe3 $1 {[%emt 0:03:00]} 22. fxe3 {[%emt 0:00:46]} Ne5 {[%emt 0:00:06]} 23. Qf4 {[%emt 0:01:36]} Re7 {[%emt 0:03:58]} 24. Rd2 {[%emt 0:03:09]} f6 {[%emt 0:06:42]} 25. h6 {[%emt 0:01:52]} gxh6 $1 {[%emt 0:00:44]} 26. Kg2 {[%emt 0:03:23][%cal Oe3e4]} (26. Qxf6 $2 Rf7 27. Qe6 Nf3+ 28. Kg2 Nxd2 $19) 26... Ng4 {[%emt 0:01:57]} 27. e4 {[%emt 0:00:46] And now Rdc2 would win.} h5 {[%emt 0:01:32]} 28. Rc3 {[%emt 0:00:40]} Qe8 {[%emt 0:05:43]} 29. Rd4 {[%emt 0:02:20]} Qb5 {[%emt 0:02:14] Hoping for ...Qe2+.} 30. Rd2 {[%emt 0:00:05] Against Qe2+} Qb6 {[%emt 0:03:59]} 31. Kh1 {[%emt 0:01:07]} Qb5 {[%emt 0:01:04][%cal Oe7e4]} 32. Kg2 {[%emt 0:00:34]} Qb6 {[%emt 0:00:40]} 33. Kh1 {[%emt 0:00:08]} Qb5 {[%emt 0:01:01][%cal Oe7e4] White must now prevent ...Rxe4!} 34. Qf5 {[%emt 0:00:50] [#]} (34. Kg2 $11 {and White stays safe.}) 34... Rxe4 $3 $19 {[%emt 0:00:24][%cal Oc7c5][%mdl 576] Threatens to win with ...c5! Deflection, Back Rank} 35. a4 {[%emt 0:00:32]} (35. Rxc7 Re1+ 36. Kg2 Ne3+ 37. Kh2 Nxf5 38. Rf2 Qxd5 39. Rg2 Ne3 40. Rc8+ Kg7 41. Rc7+ Kg6 42. Rcc2 Qxg2+ 43. Rxg2 Ng4+ 44. Kh3 Rh1+) (35. Qf3 $142) (35. Kg2 Qe8) 35... Qe8 {[%emt 0:01:31]} (35... Re1+ $2 36. Kg2 Qxa4 37. Qc8+ Re8 38. Qf5) 36. Qf3 {[%emt 0:00:31]} (36. Rxc7 Re1+ 37. Kg2 Ne3+ 38. Kf2 Rf1+ 39. Ke2 Rxf5 40. Kd3 Rxd5+ 41. Kc3 Qe5+ 42. Kb3 Rxd2 43. Rc8+ Kg7 44. Rc7+ Kg6 45. Rc3 Qd5+ 46. Ka3 Nc4+ 47. Rxc4 Qxc4 48. b3 Qc1+ 49. Kb4 Qc5#) 36... Re1+ {[%emt 0:01:09]} (36... Rxa4 37. Re2 Qd8 38. Re6 $11) (36... Qxa4 37. Kg2 $17) 37. Kg2 {[%emt 0:00:26]} Qe7 {[%emt 0:00:28]} (37... Qxa4 38. Re2 Qa1 39. Rxe1 (39. Rxc7 Rg1+ 40. Kh3 Rh1+) 39... Qxe1 40. Rxc7 $17) 38. Kh3 {[%emt 0:00:34]} Qd7 {[%emt 0:00:25]} 39. Kg2 {[%emt 0:00:15] Dodges Nf2} Qxa4 {[%emt 0:00:50]} (39... Qe8 $19 {aiming for ...Ne3+.} 40. Rd4 (40. Rxc7 $2 Ne3+ 41. Kh3 Qd8 $19) 40... Re2+ 41. Kg1 Re1+ 42. Kg2 Ne3+ 43. Kh3 Qe7) 40. Re2 $17 {[%emt 0:00:45] Prevents Ne3+} Qa1 {[%emt 0:00:29] ( -> ...Rg1+)} 41. Rxe1 {[%emt 0:00:21]} (41. Rxc7 Rg1+ 42. Kh3 Rh1+) 41... Qxe1 {[%emt 0:00:06]} 42. Rxc7 {[%emt 0:00:34] [#]} Qd2+ {[%emt 0:00:14]} (42... b5 $1 $17 43. Kh3 (43. Rc8+ Kg7 $17) 43... Ne5) 43. Kg1 $11 {[%emt 0:00:02]} Qe1+ {[%emt 0:00:43]} ({Black should try} 43... Qd4+ $11 44. Kh1 Ne5) 44. Kg2 $17 {[%emt 0:00:04] [#]} Qd2+ {[%emt 0:00:03]} (44... b5 $1 $17 {...a5 is the strong threat.} 45. Kh3 (45. Rc8+ Kg7 $17) 45... Ne5 46. Rc8+ Kg7) 45. Kg1 $11 {[%emt 0:00:06]} Qe1+ {[%emt 0:01:24] A brilliant game!   Weighted Error Value: White=0.20 (precise) /Black=0.19 (very precise)} 1/2-1/2

[Event "14th Chennai GM Open 2023"]
[Site "Chennai"]
[Date "2024.01.01"]
[Round "3.3"]
[White "Sharnarthi Viresh"]
[Black "Fedorov, Alexei"]
[Result "0-1"]
[ECO "E60"]
[WhiteElo "1850"]
[BlackElo "2454"]
[Annotator "RC"]
[PlyCount "118"]
[EventDate "2023.12.31"]
[EventType "swiss"]
[EventCountry "IND"]
[SourceTitle "playchess.com"]
[Source "ChessBase"]
[SourceQuality "1"]
[TimeControl "5400+30"]

1. d4 {[%emt 0:00:03]} Nf6 {[%emt 0:00:05]} 2. Nf3 {[%emt 0:00:04]} g6 {[%emt 0:00:04]} 3. c4 {[%emt 0:00:05]} Bg7 {[%emt 0:00:05]} 4. g3 {[%emt 0:00:03]} c5 {[%emt 0:00:27]} 5. d5 {[%emt 0:00:05]} b5 {[%emt 0:00:04]} 6. cxb5 {[%emt 0:00:08]} a6 {[%emt 0:00:04]} 7. b6 {[%emt 0:00:27]} O-O {[%emt 0:01:22]} 8. Bg2 {[%emt 0:00:09]} d6 {[%emt 0:00:08]} 9. O-O {[%emt 0:00:08]} Nbd7 {[%emt 0:00:05]} 10. Nc3 {[%emt 0:00:22]} Nxb6 {[%emt 0:00:41]} 11. a4 {[%emt 0:03:26]} a5 {[%emt 0:04:00]} 12. e4 {[%emt 0:00:20]} Ba6 {[%emt 0:02:23]} 13. Re1 {[%emt 0:00:42]} Nfd7 {[%emt 0:00:59]} 14. Bf1 {[%emt 0:00:20]} Nc4 {[%emt 0:05:25]} 15. Nd2 {[%emt 0:07:16]} Nxd2 {[%emt 0:09:47]} 16. Bxd2 {[%emt 0:21:24]} c4 {[%emt 0:04:22]} 17. Rb1 {[%emt 0:02:26]} Qb6 {[%emt 0:02:05]} 18. Nb5 {[%emt 0:10:17]} Bxb5 {[%emt 0:03:43]} 19. axb5 {[%emt 0:00:42]} Qxb5 {[%emt 0:07:58]} 20. b3 {[%emt 0:01:08]} Qc5 {[%emt 0:00:11]} 21. Bxc4 {[%emt 0:16:04]} Bd4 {[%emt 0:01:00]} 22. Be3 {[%emt 0:08:43]} Bxe3 {[%emt 0:00:05]} 23. Rxe3 {[%emt 0:00:04]} Ne5 {[%emt 0:04:39]} 24. Bf1 {[%emt 0:00:49]} Rfc8 {[%emt 0:03:59]} 25. Bh3 {[%emt 0:06:56]} Rc7 {[%emt 0:00:09]} 26. Kg2 {[%emt 0:00:58]} Rb8 {[%emt 0:01:32]} 27. Ra1 {[%emt 0:03:04]} Rb4 {[%emt 0:01:58]} 28. Qe2 {[%emt 0:01:43]} Qb6 {[%emt 0:00:55]} 29. Ra3 {[%emt 0:05:18]} a4 {[%emt 0:03:23]} 30. Qd1 {[%emt 0:05:53]} Rd4 {[%emt 0:01:42]} 31. Qe2 {[%emt 0:02:08]} Rc1 {[%emt 0:00:59]} 32. f4 {[%emt 0:01:32]} Rd3 {[%emt 0:02:32]} 33. fxe5 {[%emt 0:02:32]} Qxe3 {[%emt 0:00:55]} 34. Qxe3 {[%emt 0:01:06]} Rxe3 {[%emt 0:00:05]} 35. exd6 {[%emt 0:00:58]} exd6 {[%emt 0:00:04]} 36. Rxa4 {[%emt 0:00:17]} Rc2+ {[%emt 0:00:06]} 37. Kf1 {[%emt 0:00:13]} Rxb3 {[%emt 0:00:39]} 38. Ra1 {[%emt 0:00:13]} Rxh2 {[%emt 0:00:10]} 39. Bg2 {[%emt 0:00:03]} Rb2 {[%emt 0:00:30]} 40. e5 {[%emt 0:00:51]} Rbxg2 {[%emt 0:00:11]} 41. Ra8+ {[%emt 0:00:29]} Kg7 {[%emt 0:00:05]} 42. exd6 {[%emt 0:00:03]} Ra2 {[%emt 0:00:46]} 43. Rxa2 {[%emt 0:00:21]} Rxa2 {[%emt 0:00:03]} 44. d7 {[%emt 0:00:06]} Ra8 {[%emt 0:00:04]} 45. d6 {[%emt 0:00:04]} Rd8 {[%emt 0:00:04]} 46. g4 {[%emt 0:00:03]} Rxd7 {[%emt 0:00:06]} 47. g5 {[%emt 0:00:02]} Rxd6 {[%emt 0:00:04]} 48. Kg2 {[%emt 0:00:02]} Rd5 {[%emt 0:00:05]} 49. Kf3 {[%emt 0:00:03]} Rxg5 {[%emt 0:00:05]} 50. Kf4 {[%emt 0:00:02]} Kf6 {[%emt 0:00:05]} 51. Ke4 {[%emt 0:00:03]} h5 {[%emt 0:00:04]} 52. Kf4 {[%emt 0:00:02]} h4 {[%emt 0:00:06]} 53. Ke4 {[%emt 0:00:02]} h3 {[%emt 0:00:04]} 54. Kf4 {[%emt 0:00:01]} h2 {[%emt 0:00:06]} 55. Ke4 {[%emt 0:00:05]} h1=Q+ {[%emt 0:00:06]} 56. Ke3 {[%emt 0:00:04]} Re5+ {[%emt 0:00:11]} 57. Kf4 {[%emt 0:00:11]} Qf1+ {[%emt 0:00:15]} 58. Kg3 {[%emt 0:00:02]} Rg5+ {[%emt 0:00:06]} 59. Kh2 {[%emt 0:00:02]} Qg2# {[%emt 0:00:07]} 0-1

[Event "14th Chennai GM Open 2023"]
[Site "Chennai"]
[Date "2024.01.01"]
[Round "3.4"]
[White "Glek, Igor"]
[Black "Khairmode Dhanashree"]
[Result "1-0"]
[ECO "C44"]
[WhiteElo "2429"]
[BlackElo "1849"]
[Annotator "RC"]
[PlyCount "53"]
[EventDate "2023.12.31"]
[EventType "swiss"]
[EventCountry "IND"]
[SourceTitle "playchess.com"]
[Source "ChessBase"]
[SourceQuality "1"]
[TimeControl "5400+30"]

1. e4 {[%emt 0:04:36]} e5 {[%emt 0:00:16]} 2. Nf3 {[%emt 0:03:08]} Nf6 {[%emt 0:00:11]} 3. d3 {[%emt 0:02:05]} Nc6 {[%emt 0:01:20]} 4. g3 {[%emt 0:00:04]} d5 {[%emt 0:01:52]} 5. exd5 {[%emt 0:00:05]} Nxd5 {[%emt 0:00:06]} 6. Bg2 {[%emt 0:00:03]} Bg4 {[%emt 0:01:43]} 7. h3 {[%emt 0:00:14]} Bh5 {[%emt 0:00:12]} 8. O-O {[%emt 0:00:21]} Bd6 {[%emt 0:08:09]} 9. Nbd2 {[%emt 0:09:18]} O-O {[%emt 0:06:18]} 10. c3 {[%emt 0:02:48]} h6 {[%emt 0:06:40]} 11. Re1 {[%emt 0:03:07]} a5 {[%emt 0:08:07]} 12. Qb3 {[%emt 0:08:03]} Nb6 {[%emt 0:00:19]} 13. a4 {[%emt 0:00:06]} Bg6 {[%emt 0:04:33]} 14. Ne4 {[%emt 0:18:52]} Be7 {[%emt 0:03:34]} 15. Be3 {[%emt 0:00:25]} Qxd3 {[%emt 0:28:52]} 16. Nc5 {[%emt 0:01:11]} Qc4 {[%emt 0:01:11]} 17. Qb5 {[%emt 0:01:23]} Na7 {[%emt 0:13:00]} 18. Qxa5 {[%emt 0:04:52]} Nac8 {[%emt 0:01:18]} 19. Qxa8 {[%emt 0:04:23]} Nxa8 {[%emt 0:00:18]} 20. Nxe5 {[%emt 0:00:09]} Qxc5 {[%emt 0:02:43]} 21. Bxc5 {[%emt 0:00:14]} Bxc5 {[%emt 0:00:05]} 22. Nd7 {[%emt 0:00:10]} Ba7 {[%emt 0:01:05]} 23. Nxf8 {[%emt 0:00:15]} Kxf8 {[%emt 0:00:06]} 24. Bxb7 {[%emt 0:00:08]} Nab6 {[%emt 0:00:06]} 25. a5 {[%emt 0:00:18]} Nc4 {[%emt 0:00:37]} 26. Bxc8 {[%emt 0:00:09]} Nxb2 {[%emt 0:00:03]} 27. Ba6 {[%emt 0:01:15]} 1-0

[Event "14th Chennai GM Open 2023"]
[Site "Chennai"]
[Date "2024.01.01"]
[Round "3.5"]
[White "Mummana Venkata Ruthvik"]
[Black "Ajay Karthikeyan"]
[Result "1/2-1/2"]
[ECO "B04"]
[WhiteElo "1841"]
[BlackElo "2423"]
[Annotator "RC"]
[PlyCount "86"]
[EventDate "2023.12.31"]
[EventType "swiss"]
[EventCountry "IND"]
[SourceTitle "playchess.com"]
[Source "ChessBase"]
[SourceQuality "1"]
[TimeControl "5400+30"]

1. e4 {[%emt 0:02:21]} Nf6 {[%emt 0:00:05]} 2. e5 {[%emt 0:01:24]} Nd5 {[%emt 0:00:02]} 3. d4 {[%emt 0:00:10]} d6 {[%emt 0:00:05]} 4. Nf3 {[%emt 0:00:35]} g6 {[%emt 0:00:11]} 5. Be2 {[%emt 0:01:59]} Bg7 {[%emt 0:00:02]} 6. O-O {[%emt 0:00:50]} O-O {[%emt 0:00:08]} 7. Re1 {[%emt 0:01:43]} Nb6 {[%emt 0:02:44]} 8. exd6 {[%emt 0:05:08]} cxd6 {[%emt 0:00:14]} 9. c3 {[%emt 0:01:01]} Nc6 {[%emt 0:00:32]} 10. Na3 {[%emt 0:03:47]} h6 {[%emt 0:01:00]} 11. Nc4 {[%emt 0:08:32]} Nxc4 {[%emt 0:03:13]} 12. Bxc4 {[%emt 0:01:19]} e5 {[%emt 0:00:05]} 13. Bd5 {[%emt 0:10:49]} Ne7 {[%emt 0:06:57]} 14. Bb3 {[%emt 0:01:58]} Qc7 {[%emt 0:02:07]} 15. Qe2 {[%emt 0:01:55]} Nc6 {[%emt 0:00:57]} 16. Be3 {[%emt 0:02:28]} Kh7 {[%emt 0:00:26]} 17. dxe5 {[%emt 0:01:12]} dxe5 {[%emt 0:00:07]} 18. Rad1 {[%emt 0:03:01]} b6 {[%emt 0:00:01]} 19. Bd5 {[%emt 0:01:09]} Bb7 {[%emt 0:01:32]} 20. h4 {[%emt 0:02:13]} Rae8 {[%emt 0:10:45]} 21. h5 {[%emt 0:06:21]} Ne7 {[%emt 0:01:31]} 22. Bxb7 {[%emt 0:02:30]} Qxb7 {[%emt 0:03:32]} 23. Qb5 {[%emt 0:01:19]} e4 {[%emt 0:04:03]} 24. Ne5 {[%emt 0:04:03]} Nf5 {[%emt 0:10:06]} 25. Nd7 {[%emt 0:02:14]} Rg8 {[%emt 0:00:18]} 26. hxg6+ {[%emt 0:04:39]} fxg6 {[%emt 0:00:02]} 27. Nf6+ {[%emt 0:00:45]} Bxf6 {[%emt 0:00:03]} 28. Rd7+ {[%emt 0:00:05]} Qxd7 {[%emt 0:00:03]} 29. Qxd7+ {[%emt 0:00:05]} Re7 {[%emt 0:00:04]} 30. Qc6 {[%emt 0:01:01]} Bg7 {[%emt 0:02:33]} 31. Bd4 {[%emt 0:04:43]} Nxd4 {[%emt 0:00:30]} 32. cxd4 {[%emt 0:00:05]} Bxd4 {[%emt 0:00:13]} 33. Rxe4 {[%emt 0:00:38]} Rxe4 {[%emt 0:00:09]} 34. Qxe4 {[%emt 0:00:02]} Bxb2 {[%emt 0:00:07]} 35. f4 {[%emt 0:00:55]} Ba3 {[%emt 0:11:55]} 36. f5 {[%emt 0:04:07]} Bc5+ {[%emt 0:00:53]} 37. Kh2 {[%emt 0:00:14]} gxf5 {[%emt 0:02:48]} 38. Qxf5+ {[%emt 0:00:51]} Kg7 {[%emt 0:00:32]} 39. Qd7+ {[%emt 0:00:58]} Kf6 {[%emt 0:00:57]} 40. Qxa7 {[%emt 0:00:35]} Bd6+ {[%emt 0:01:27]} 41. Kg1 {[%emt 0:00:48]} Bc5+ {[%emt 0:00:12]} 42. Kh2 {[%emt 0:00:08]} Bd6+ {[%emt 0:03:53]} 43. Kg1 {[%emt 0:00:19]} Bc5+ {[%emt 0:00:01]} 1/2-1/2

[Event "14th Chennai GM Open 2023"]
[Site "Chennai"]
[Date "2024.01.01"]
[Round "3.6"]
[White "Viani Antonio Dcunha"]
[Black "Raihaan Zahid"]
[Result "1-0"]
[ECO "E04"]
[WhiteElo "2407"]
[BlackElo "1839"]
[Annotator "RC"]
[PlyCount "65"]
[EventDate "2023.12.31"]
[EventType "swiss"]
[EventCountry "IND"]
[SourceTitle "playchess.com"]
[Source "ChessBase"]
[SourceQuality "1"]
[TimeControl "5400+30"]

1. d4 {[%emt 0:00:18]} Nf6 {[%emt 0:00:59]} 2. c4 {[%emt 0:00:16]} e6 {[%emt 0:00:10]} 3. g3 {[%emt 0:00:11]} d5 {[%emt 0:00:08]} 4. Nf3 {[%emt 0:00:12]} dxc4 {[%emt 0:00:16]} 5. Bg2 {[%emt 0:00:12]} c5 {[%emt 0:00:08]} 6. O-O {[%emt 0:00:20]} Nc6 {[%emt 0:00:12]} 7. Qa4 {[%emt 0:00:12]} Bd7 {[%emt 0:00:08]} 8. Qxc4 {[%emt 0:00:11]} b5 {[%emt 0:00:08]} 9. Qc3 {[%emt 0:00:15]} b4 {[%emt 0:00:10]} 10. Qd3 {[%emt 0:00:08]} Rc8 {[%emt 0:07:08]} 11. dxc5 {[%emt 0:00:42]} Bxc5 {[%emt 0:00:14]} 12. Nbd2 {[%emt 0:00:14]} O-O {[%emt 0:05:03]} 13. Nb3 {[%emt 0:00:10]} Be7 {[%emt 0:05:45]} 14. Be3 {[%emt 0:08:18]} Nd5 {[%emt 0:13:00]} 15. Bc5 {[%emt 0:08:24]} Bxc5 {[%emt 0:03:46]} 16. Nxc5 {[%emt 0:00:06]} Qe7 {[%emt 0:01:48]} 17. Rac1 {[%emt 0:00:55]} Rfd8 {[%emt 0:06:49]} 18. Nb7 {[%emt 0:09:22]} Rf8 {[%emt 0:02:00]} 19. Rfd1 {[%emt 0:07:07]} Nb8 {[%emt 0:08:00]} 20. e4 {[%emt 0:10:24]} Nb6 {[%emt 0:11:27]} 21. Nd6 {[%emt 0:07:58]} Rxc1 {[%emt 0:02:07]} 22. Rxc1 {[%emt 0:00:03]} Bc6 {[%emt 0:02:07]} 23. Ne5 {[%emt 0:11:26]} Ba8 {[%emt 0:05:50]} 24. Rd1 {[%emt 0:04:24]} N8d7 {[%emt 0:07:36]} 25. Nec4 {[%emt 0:08:06]} Qg5 {[%emt 0:11:02]} 26. Qd4 {[%emt 0:05:53]} Nxc4 {[%emt 0:03:35]} 27. Nxc4 {[%emt 0:01:28]} Nf6 {[%emt 0:02:34]} 28. Ne5 {[%emt 0:02:06]} a5 {[%emt 0:00:49]} 29. h4 {[%emt 0:01:07]} Qh6 {[%emt 0:00:38]} 30. Bf3 {[%emt 0:00:18]} g5 {[%emt 0:01:03]} 31. Qe3 {[%emt 0:00:30]} Qg7 {[%emt 0:00:08]} 32. hxg5 {[%emt 0:00:36]} Nh5 {[%emt 0:00:59]} 33. Nd7 {[%emt 0:00:28]} 1-0

[Event "14th Chennai GM Open 2023"]
[Site "Chennai"]
[Date "2024.01.01"]
[Round "3.7"]
[White "Sharnarthi Shlok"]
[Black "Nitin, S.."]
[Result "1-0"]
[ECO "B06"]
[WhiteElo "1832"]
[BlackElo "2385"]
[Annotator "RC"]
[PlyCount "91"]
[EventDate "2023.12.31"]
[EventType "swiss"]
[EventCountry "IND"]
[SourceTitle "playchess.com"]
[Source "ChessBase"]
[SourceQuality "1"]
[TimeControl "5400+30"]

1. e4 {[%emt 0:00:06]} g6 {[%emt 0:00:37]} 2. d4 {[%emt 0:00:57]} Bg7 {[%emt 0:00:17]} 3. Nf3 {[%emt 0:00:21]} c6 {[%emt 0:02:09]} 4. Bd3 {[%emt 0:00:59]} d6 {[%emt 0:00:19]} 5. O-O {[%emt 0:00:19]} Bg4 {[%emt 0:02:03]} 6. c3 {[%emt 0:03:11]} Nd7 {[%emt 0:01:32]} 7. Nbd2 {[%emt 0:02:23]} Ngf6 {[%emt 0:02:49]} 8. h3 {[%emt 0:01:29]} Bxf3 {[%emt 0:00:12]} 9. Nxf3 {[%emt 0:00:09]} e5 {[%emt 0:00:25]} 10. dxe5 {[%emt 0:02:19]} dxe5 {[%emt 0:00:17]} 11. Bc2 {[%emt 0:00:09]} Qe7 {[%emt 0:00:44]} 12. b4 {[%emt 0:02:07]} O-O {[%emt 0:04:18]} 13. a4 {[%emt 0:00:51]} Nh5 {[%emt 0:00:13]} 14. g3 {[%emt 0:00:43]} Kh8 {[%emt 0:02:57]} 15. Rb1 {[%emt 0:03:07]} b5 {[%emt 0:06:20]} 16. Qe2 {[%emt 0:01:57]} a6 {[%emt 0:00:29]} 17. c4 {[%emt 0:03:22]} bxc4 {[%emt 0:02:05]} 18. Qxc4 {[%emt 0:03:55]} f5 {[%emt 0:01:16]} 19. Bg5 {[%emt 0:01:18]} Bf6 {[%emt 0:05:48]} 20. Bxf6+ {[%emt 0:03:16]} Rxf6 {[%emt 0:04:08]} 21. Rfe1 {[%emt 0:01:51]} Ng7 {[%emt 0:05:34]} 22. Qc3 {[%emt 0:03:07]} Re8 {[%emt 0:15:09]} 23. Rbd1 {[%emt 0:03:46]} f4 {[%emt 0:04:37]} 24. g4 {[%emt 0:01:52]} g5 {[%emt 0:00:10]} 25. Bb3 {[%emt 0:05:45]} h6 {[%emt 0:03:10]} 26. Rd3 {[%emt 0:02:31]} c5 {[%emt 0:05:00]} 27. bxc5 {[%emt 0:00:28]} Nxc5 {[%emt 0:00:54]} 28. Rd5 {[%emt 0:00:34]} Nxb3 {[%emt 0:00:26]} 29. Qxb3 {[%emt 0:00:33]} Re6 {[%emt 0:02:25]} 30. Rc1 {[%emt 0:02:26]} h5 {[%emt 0:07:24]} 31. Qd3 {[%emt 0:05:37]} Qf6 {[%emt 0:03:17]} 32. Kg2 {[%emt 0:04:46]} R8e7 {[%emt 0:07:15]} 33. Rc8+ {[%emt 0:06:40]} Kh7 {[%emt 0:00:09]} 34. Ra8 {[%emt 0:02:08]} Ne8 {[%emt 0:00:44]} 35. Rd7 {[%emt 0:01:33]} hxg4 {[%emt 0:05:52]} 36. hxg4 {[%emt 0:00:57]} Kh6 {[%emt 0:01:29]} 37. Rdd8 {[%emt 0:04:40]} Qg6 {[%emt 0:00:36]} 38. Nd2 {[%emt 0:03:18]} Kg7 {[%emt 0:00:32]} 39. a5 {[%emt 0:01:46]} Nf6 {[%emt 0:03:50]} 40. f3 {[%emt 0:07:00]} Ne8 {[%emt 0:00:01]} 41. Nc4 {[%emt 0:04:44]} Qh6 {[%emt 0:01:25]} 42. Rd7 {[%emt 0:02:05]} Nf6 {[%emt 0:01:56]} 43. Rxe7+ {[%emt 0:00:17]} Rxe7 {[%emt 0:00:01]} 44. Nd6 {[%emt 0:00:07]} Rd7 {[%emt 0:00:58]} 45. Nf5+ {[%emt 0:00:17]} Kg6 {[%emt 0:00:06]} 46. Qxd7 {[%emt 0:00:18]} 1-0